[Event "3rd BSSZ-Aranytiz IM 2019"]
[Site "Budapest"]
[Date "2019.08.16"]
[Round "1.1"]
[White "Urhegyi, Marton"]
[Black "Juhasz, Barbara"]
[Result "1/2-1/2"]
[ECO "B31"]
[WhiteElo "2256"]
[BlackElo "2157"]
[Annotator "NA"]
[PlyCount "100"]
[EventDate "2019.08.16"]
[EventType "tourn"]
[EventCountry "HUN"]
[SourceTitle "playchess.com"]
[Source "ChessBase"]
[SourceQuality "1"]
[TimeControl "40/5400+30:1800+30"]

1. e4 c5 2. Nf3 Nc6 3. Bb5 g6 4. O-O Bg7 5. h3 e5 6. Bxc6 dxc6 7. d3 Qd6 8. Be3 Nf6 9. Nbd2 Nh5 10. a4 Be6 11. Ng5 Nf4 12. Bxf4 exf4 13. Nxe6 fxe6 14. Nc4 Qe7 15. e5 O-O 16. Qf3 Rad8 17. Rfe1 Rd5 18. Re4 g5 19. g3 fxg3 20. Qxg3 Kh8 21. Rf1 b5 22. axb5 cxb5 23. Nd6 Bxe5 24. Rxe5 Qxd6 25. Rfe1 Rf6 26. Rxd5 exd5 27. Qxd6 Rxd6 28. Re8+ Kg7 29. Re7+ Kg6 30. Rxa7 d4 31. Rc7 Rd5 32. Rc6+ Kf5 33. Kg2 Kf4 34. b3 h5 35. Rf6+ Rf5 36. Rc6 h4 37. Re6 Re5 38. Rc6 Rd5 39. Rf6+ Rf5 40. Rc6 g4 41. Re6 Kg5 42. hxg4 Kxg4 43. Re4+ Rf4 44. f3+ Kg5 45. Re8 Rf5 46. Kf2 Kf6 47. Rh8 Kg5 48. Rg8+ Kh5 49. Rh8+ Kg5 50. Rg8+ Kh5 1/2-1/2

[Event "3rd BSSZ-Aranytiz IM 2019"]
[Site "Budapest"]
[Date "2019.08.16"]
[Round "1.2"]
[White "Hamblok, Roel"]
[Black "Luong, Phuong Hanh"]
[Result "1-0"]
[ECO "A05"]
[WhiteElo "2261"]
[BlackElo "2313"]
[Annotator "NA"]
[PlyCount "133"]
[EventDate "2019.08.16"]
[EventType "tourn"]
[EventCountry "HUN"]
[SourceTitle "playchess.com"]
[Source "ChessBase"]
[SourceQuality "1"]
[TimeControl "40/5400+30:1800+30"]

1. Nf3 Nf6 2. c4 g6 3. Nc3 d5 4. cxd5 Nxd5 5. e4 Nxc3 6. dxc3 Qxd1+ 7. Kxd1 Bg7 8. Bf4 c6 9. a4 Nd7 10. Kc2 Nc5 11. Nd2 Be6 12. b4 Nd7 13. Nb3 f5 14. Na5 fxe4 15. Nxb7 O-O 16. Be3 Nf6 17. Nc5 Bf7 18. Ba6 Nd5 19. Bd2 Rad8 20. Nxe4 Nb6 21. Rhe1 Bc4 22. Bxc4+ Nxc4 23. Bg5 Rd7 24. Kb3 Ne5 25. Red1 Rfd8 26. Rxd7 Rxd7 27. Nc5 Rd5 28. Bxe7 Kf7 29. Bh4 a5 30. Bg3 axb4 31. cxb4 Nd3 32. Ra3 Nxc5+ 33. bxc5 Rxc5 34. a5 Bd4 35. a6 Rb5+ 36. Kc4 Ba7 37. Rb3 Rc5+ 38. Kd3 Rd5+ 39. Ke4 Rd4+ 40. Ke5 Rd5+ 41. Ke4 Rd4+ 42. Kf3 Ke6 43. Rb7 Bc5 44. Rc7 Ra4 45. Rxc6+ Kd5 46. Rf6 Ra3+ 47. Kg4 Be7 48. Rb6 h5+ 49. Kf4 h4 50. Bxh4 Bxh4 51. g3 Be7 52. Rxg6 Bd6+ 53. Kg4 Ra2 54. a7 Bc5 55. f4 Bxa7 56. h4 Ra3 57. h5 Bf2 58. Kh3 Ke4 59. h6 Bxg3 60. Rxg3 Ra6 61. Rg5 Kxf4 62. Rg4+ Kf5 63. h7 Ra3+ 64. Rg3 Ra1 65. Kh2 Ra2+ 66. Rg2 Ra8 67. Rg8 1-0

[Event "3rd BSSZ-Aranytiz IM 2019"]
[Site "Budapest"]
[Date "2019.08.16"]
[Round "1.3"]
[White "Persanyi, Barnabas"]
[Black "Maerevoet, Sim"]
[Result "1/2-1/2"]
[ECO "A07"]
[WhiteElo "2399"]
[BlackElo "2321"]
[Annotator "NA"]
[PlyCount "43"]
[EventDate "2019.08.16"]
[EventType "tourn"]
[EventCountry "HUN"]
[SourceTitle "playchess.com"]
[Source "ChessBase"]
[SourceQuality "1"]
[TimeControl "40/5400+30:1800+30"]

1. Nf3 Nf6 2. g3 d5 3. Bg2 c6 4. O-O Bg4 5. h3 Bh5 6. d4 e6 7. c4 Nbd7 8. cxd5 exd5 9. Qb3 Qb6 10. Qe3+ Be7 11. Nh4 Bg6 12. Nc3 Nf8 13. Nxg6 hxg6 14. Na4 Qc7 15. Nc5 N6d7 16. Nxd7 Qxd7 17. Qd3 Ne6 18. Bd2 Bf6 19. Be3 Nc7 20. Bf4 Ne6 21. Be3 Nc7 22. Bf4 1/2-1/2

[Event "3rd BSSZ-Aranytiz IM 2019"]
[Site "Budapest"]
[Date "2019.08.16"]
[Round "1.4"]
[White "Farago, Sandor"]
[Black "Nemeth, Zoltan"]
[Result "1/2-1/2"]
[ECO "A05"]
[WhiteElo "2211"]
[BlackElo "2275"]
[Annotator "NA"]
[PlyCount "52"]
[EventDate "2019.08.16"]
[EventType "tourn"]
[EventCountry "HUN"]
[SourceTitle "playchess.com"]
[Source "ChessBase"]
[SourceQuality "1"]
[TimeControl "40/5400+30:1800+30"]

1. Nf3 Nf6 2. c4 c5 3. Nc3 g6 4. d4 cxd4 5. Nxd4 Bg7 6. g3 O-O 7. Bg2 Nc6 8. Nc2 d6 9. O-O a6 10. Rb1 Qa5 11. Ne3 Qh5 12. Ncd5 Nxd5 13. cxd5 Ne5 14. Bd2 Ng4 15. Nxg4 Bxg4 16. f3 Bh3 17. e4 Bxg2 18. Kxg2 f5 19. Qe2 fxe4 20. Qxe4 Qf5 21. Bc3 Qxe4 22. fxe4 Rxf1 23. Kxf1 Rc8 24. Ke2 Bxc3 25. bxc3 Rxc3 26. Rxb7 Kf7 1/2-1/2

[Event "3rd BSSZ-Aranytiz IM 2019"]
[Site "Budapest"]
[Date "2019.08.16"]
[Round "1.5"]
[White "Havanecz, Bianka"]
[Black "Martic, Zlatko"]
[Result "1-0"]
[ECO "D16"]
[WhiteElo "2281"]
[BlackElo "2284"]
[Annotator "NA"]
[PlyCount "91"]
[EventDate "2019.08.16"]
[EventType "tourn"]
[EventCountry "HUN"]
[SourceTitle "playchess.com"]
[Source "ChessBase"]
[SourceQuality "1"]
[TimeControl "40/5400+30:1800+30"]

1. d4 d5 2. c4 c6 3. Nf3 Nf6 4. Nc3 dxc4 5. a4 a5 6. e3 Bg4 7. Bxc4 Bxf3 8. Qxf3 e6 9. O-O Be7 10. Rd1 O-O 11. e4 Nbd7 12. e5 Nd5 13. Nxd5 cxd5 14. Bd3 g6 15. Bh6 Re8 16. Bb5 Bf8 17. Bf4 h6 18. Rac1 Bg7 19. h4 Re7 20. Rc3 Nb8 21. h5 g5 22. Bd2 Na6 23. Qg4 Nb4 24. f4 gxf4 25. Bxf4 Kh8 26. Rg3 Qg8 27. Rc1 f5 28. Qh4 Qf7 29. Rg6 Kh7 30. Rc3 Nc6 31. Bxc6 bxc6 32. Rxc6 Rb8 33. Qf2 Rb4 34. Qd2 Qf8 35. Rcxe6 Rxe6 36. Rxe6 Rxa4 37. Qd3 Qf7 38. Rg6 Ra1+ 39. Kh2 Qe7 40. Bg3 Qf8 41. Bh4 Qc8 42. Bf6 Bf8 43. Rg3 Re1 44. Qb5 f4 45. Rg6 f3 46. Qxd5 1-0

[Event "3rd BSSZ-Aranytiz IM 2019"]
[Site "Budapest"]
[Date "2019.08.17"]
[Round "2.1"]
[White "Juhasz, Barbara"]
[Black "Martic, Zlatko"]
[Result "0-1"]
[ECO "B49"]
[WhiteElo "2157"]
[BlackElo "2284"]
[Annotator "NA"]
[PlyCount "141"]
[EventDate "2019.08.16"]
[EventType "tourn"]
[EventCountry "HUN"]
[SourceTitle "playchess.com"]
[Source "ChessBase"]
[SourceQuality "1"]
[TimeControl "40/5400+30:1800+30"]

1. e4 {[%emt 0:00:05]} c5 {[%emt 0:01:02]} 2. Nf3 {[%emt 0:00:13]} e6 {[%emt 0:00:20]} 3. d4 {[%emt 0:00:17]} cxd4 {[%emt 0:00:07]} 4. Nxd4 {[%emt 0:00:05]} Nc6 {[%emt 0:00:24]} 5. Nc3 {[%emt 0:00:14]} a6 {[%emt 0:00:16]} 6. Be3 {[%emt 0:03:17]} Qc7 {[%emt 0:00:22]} 7. Be2 {[%emt 0:00:50]} Nf6 {[%emt 0:03:10]} 8. O-O {[%emt 0:01:24]} b5 {[%emt 0:01:32]} 9. Nxc6 {[%emt 0:00:40]} dxc6 {[%emt 0:00:10]} 10. f4 {[%emt 0:26:18]} Be7 {[%emt 0:06:38]} 11. a3 {[%emt 0:09:55]} e5 {[%emt 0:11:58]} 12. Qe1 {[%emt 0:13:51]} O-O {[%emt 0:11:50]} 13. Qg3 {[%emt 0:01:28]} Nd7 {[%emt 0:00:49]} 14. Kh1 {[%emt 0:01:13]} Bf6 {[%emt 0:01:10]} 15. f5 {[%emt 0:00:48]} Bb7 {[%emt 0:00:42]} 16. Qh3 {[%emt 0:06:47]} c5 {[%emt 0:04:09]} 17. Rad1 {[%emt 0:02:23]} Nb6 {[%emt 0:01:34]} 18. g4 {[%emt 0:01:05]} b4 {[%emt 0:06:07]} 19. Nd5 {[%emt 0:00:21]} Nxd5 {[%emt 0:00:09]} 20. exd5 {[%emt 0:00:04]} h6 {[%emt 0:02:47]} 21. Qg2 {[%emt 0:04:54]} Rfe8 {[%emt 0:08:34]} 22. Qe4 {[%emt 0:02:30]} Rad8 {[%emt 0:05:47]} 23. Bc4 {[%emt 0:01:56]} Rd6 {[%emt 0:00:54]} 24. Rg1 {[%emt 0:08:02]} Red8 {[%emt 0:01:07]} 25. Rd3 {[%emt 0:01:06]} bxa3 {[%emt 0:09:14]} 26. bxa3 {[%emt 0:01:02]} Qb6 {[%emt 0:07:53]} 27. Rgd1 {[%emt 0:01:05]} Qa5 {[%emt 0:02:54]} 28. Ba2 {[%emt 0:02:55]} Rb6 {[%emt 0:01:04]} 29. Bd2 {[%emt 0:04:02]} Qb5 {[%emt 0:00:03]} 30. c4 {[%emt 0:04:13]} Qa4 {[%emt 0:00:20]} 31. Bc1 {[%emt 0:00:23]} Rxd5 {[%emt 0:02:53]} 32. Rxd5 {[%emt 0:00:21]} Qxd1+ {[%emt 0:00:13]} 33. Rxd1 {[%emt 0:00:44]} Bxe4+ {[%emt 0:00:09]} 34. Kg1 {[%emt 0:00:04]} Bf3 {[%emt 0:00:19]} 35. Rf1 {[%emt 0:00:32]} Bxg4 {[%emt 0:00:14]} 36. Be3 {[%emt 0:00:06]} Rb2 {[%emt 0:01:22]} 37. Bb1 {[%emt 0:00:13]} Be2 {[%emt 0:01:14]} 38. Re1 {[%emt 0:01:23]} Bh4 {[%emt 0:01:27]} 39. Rc1 {[%emt 0:00:13]} Bg5 {[%emt 0:01:07]} 40. Bxg5 {[%emt 0:00:00]} hxg5 {[%emt 0:00:00]} 41. Be4 {[%emt 0:00:29]} g4 {[%emt 0:00:45]} 42. Rc3 {[%emt 0:02:09]} Kf8 {[%emt 0:00:22]} 43. h3 {[%emt 0:02:09]} gxh3 {[%emt 0:04:45]} 44. Rxh3 {[%emt 0:00:04]} Ke7 {[%emt 0:00:12]} 45. Rg3 {[%emt 0:10:31]} Kf6 {[%emt 0:00:43]} 46. Rg2 {[%emt 0:00:04]} Ra2 {[%emt 0:00:45]} 47. Bd5 {[%emt 0:00:04]} Ra1+ {[%emt 0:00:29]} 48. Kh2 {[%emt 0:00:38]} Bd3 {[%emt 0:00:25]} 49. Rb2 {[%emt 0:01:01]} Rxa3 {[%emt 0:01:13]} 50. Rb7 {[%emt 0:00:39]} Bxf5 {[%emt 0:03:12]} 51. Rxf7+ {[%emt 0:00:04]} Kg6 {[%emt 0:00:09]} 52. Rc7 {[%emt 0:02:39]} Ra5 {[%emt 0:03:05]} 53. Kg3 {[%emt 0:00:50]} Ra3+ {[%emt 0:02:04]} 54. Kf2 {[%emt 0:03:03]} e4 {[%emt 0:00:09]} 55. Rxc5 {[%emt 0:00:04]} e3+ {[%emt 0:00:19]} 56. Kf3 {[%emt 0:02:49]} Kf6 {[%emt 0:04:06]} 57. Rc7 {[%emt 0:04:20]} g6 {[%emt 0:01:10]} 58. c5 {[%emt 0:03:14]} Kg5 {[%emt 0:01:53]} 59. Re7 {[%emt 0:01:59]} Bg4+ {[%emt 0:00:28]} 60. Kg2 {[%emt 0:00:05]} e2 {[%emt 0:05:25]} 61. Kf2 {[%emt 0:00:37]} Ra1 {[%emt 0:00:28]} 62. Bg2 {[%emt 0:00:01]} Rc1 {[%emt 0:03:56]} 63. c6 {[%emt 0:00:04]} a5 {[%emt 0:00:56]} 64. c7 {[%emt 0:00:25]} a4 {[%emt 0:00:11]} 65. Re5+ {[%emt 0:00:48]} Kf6 {[%emt 0:00:13]} 66. Re4 {[%emt 0:00:11]} Kf5 {[%emt 0:01:01]} 67. Re8 {[%emt 0:00:13]} Rxc7 {[%emt 0:00:40]} 68. Bf3 {[%emt 0:02:20]} e1=Q+ {[%emt 0:01:07]} 69. Rxe1 {[%emt 0:00:04]} Rc2+ {[%emt 0:00:11]} 70. Kg3 {[%emt 0:00:30]} Rc3 {[%emt 0:00:13]} 71. Rh1 0-1

[Event "3rd BSSZ-Aranytiz IM 2019"]
[Site "Budapest"]
[Date "2019.08.17"]
[Round "2.2"]
[White "Nemeth, Zoltan"]
[Black "Havanecz, Bianka"]
[Result "1/2-1/2"]
[ECO "D00"]
[WhiteElo "2275"]
[BlackElo "2281"]
[Annotator "NA"]
[PlyCount "103"]
[EventDate "2019.08.16"]
[EventType "tourn"]
[EventCountry "HUN"]
[SourceTitle "playchess.com"]
[Source "ChessBase"]
[SourceQuality "1"]
[TimeControl "40/5400+30:1800+30"]

1. d4 {[%emt 0:03:50]} d5 {[%emt 0:00:06]} 2. g3 {[%emt 0:00:10]} Nf6 {[%emt 0:00:05]} 3. Bg2 {[%emt 0:00:06]} g6 {[%emt 0:00:08]} 4. c4 {[%emt 0:02:07]} e6 {[%emt 0:00:44]} 5. Nd2 {[%emt 0:00:38]} Bg7 {[%emt 0:00:24]} 6. b3 {[%emt 0:01:44]} O-O {[%emt 0:05:18]} 7. Ba3 {[%emt 0:02:00]} Re8 {[%emt 0:00:11]} 8. Ngf3 {[%emt 0:00:10]} Nbd7 {[%emt 0:16:56]} 9. O-O {[%emt 0:00:34]} Ne4 {[%emt 0:04:36]} 10. Nxe4 {[%emt 0:04:23]} dxe4 {[%emt 0:00:04]} 11. Ne1 {[%emt 0:00:06]} Nf6 {[%emt 0:04:44]} 12. Nc2 {[%emt 0:00:28]} b6 {[%emt 0:00:33]} 13. Qd2 {[%emt 0:04:32]} Bb7 {[%emt 0:01:07]} 14. Rad1 {[%emt 0:00:13]} Qd7 {[%emt 0:05:48]} 15. Ne3 {[%emt 0:03:13]} Rad8 {[%emt 0:03:03]} 16. Qc2 {[%emt 0:00:19]} Qc8 {[%emt 0:01:52]} 17. Bb2 {[%emt 0:00:34]} Qa8 {[%emt 0:05:10]} 18. Bc3 {[%emt 0:00:09]} a5 {[%emt 0:06:22]} 19. Qb2 {[%emt 0:00:23]} Nd7 {[%emt 0:05:34]} 20. d5 {[%emt 0:03:11]} Bxc3 {[%emt 0:00:50]} 21. Qxc3 {[%emt 0:00:08]} f5 {[%emt 0:02:04]} 22. dxe6 {[%emt 0:01:47]} Rxe6 {[%emt 0:00:57]} 23. Rd2 {[%emt 0:01:13]} Nc5 {[%emt 0:08:43]} 24. Rfd1 {[%emt 0:00:05]} Rxd2 {[%emt 0:01:51]} 25. Rxd2 {[%emt 0:00:06]} Qf8 {[%emt 0:00:47]} 26. Qa1 {[%emt 0:12:55]} Rd6 {[%emt 0:01:17]} 27. Rxd6 {[%emt 0:04:46]} Qxd6 {[%emt 0:00:12]} 28. Qc3 {[%emt 0:10:58]} Ne6 {[%emt 0:05:06]} 29. Qf6 {[%emt 0:05:10]} Nd4 {[%emt 0:01:26]} 30. Qxd6 {[%emt 0:00:06]} cxd6 {[%emt 0:00:04]} 31. Kf1 {[%emt 0:01:02]} Kf7 {[%emt 0:00:36]} 32. Ke1 {[%emt 0:04:52]} Ke6 {[%emt 0:03:10]} 33. Kd2 {[%emt 0:00:22]} Bc6 {[%emt 0:06:06]} 34. Nc2 {[%emt 0:01:47]} Nxc2 {[%emt 0:01:52]} 35. Kxc2 {[%emt 0:00:07]} Ke5 {[%emt 0:00:50]} 36. e3 {[%emt 0:02:23]} g5 {[%emt 0:01:57]} 37. Kc3 {[%emt 0:04:57]} h6 {[%emt 0:01:54]} 38. a3 {[%emt 0:00:38]} Bd7 {[%emt 0:02:38]} 39. b4 {[%emt 0:11:47]} Ba4 {[%emt 0:02:45]} 40. h3 {[%emt 0:00:00]} Bd1 {[%emt 0:00:00]} 41. Kd2 {[%emt 0:13:40]} Bb3 {[%emt 0:03:03]} 42. Bf1 {[%emt 0:01:24]} axb4 {[%emt 0:00:48]} 43. axb4 {[%emt 0:00:08]} Ba4 {[%emt 0:00:58]} 44. Be2 {[%emt 0:00:39]} Bd7 {[%emt 0:09:16]} 45. Kc3 {[%emt 0:11:51]} Be8 {[%emt 0:00:18]} 46. h4 {[%emt 0:01:06]} Bf7 {[%emt 0:02:36]} 47. hxg5 {[%emt 0:02:22]} hxg5 {[%emt 0:00:04]} 48. Bd1 {[%emt 0:02:34]} Be8 {[%emt 0:00:09]} 49. Be2 {[%emt 0:00:38]} Bd7 {[%emt 0:01:01]} 50. Bd1 {[%emt 0:00:19]} Be8 {[%emt 0:00:04]} 51. Be2 {[%emt 0:00:06]} Bd7 {[%emt 0:00:04]} 52. Bd1 1/2-1/2

[Event "3rd BSSZ-Aranytiz IM 2019"]
[Site "Budapest"]
[Date "2019.08.17"]
[Round "2.3"]
[White "Maerevoet, Sim"]
[Black "Farago, Sandor"]
[Result "1/2-1/2"]
[ECO "D12"]
[WhiteElo "2321"]
[BlackElo "2211"]
[Annotator "NA"]
[PlyCount "228"]
[EventDate "2019.08.16"]
[EventType "tourn"]
[EventCountry "HUN"]
[SourceTitle "playchess.com"]
[Source "ChessBase"]
[SourceQuality "1"]
[TimeControl "40/5400+30:1800+30"]

1. d4 {[%emt 0:00:08]} d5 {[%emt 0:00:44]} 2. c4 {[%emt 0:00:10]} c6 {[%emt 0:00:11]} 3. Nf3 {[%emt 0:00:10]} Nf6 {[%emt 0:00:08]} 4. e3 {[%emt 0:00:09]} Bf5 {[%emt 0:04:06]} 5. Nc3 {[%emt 0:00:24]} a6 {[%emt 0:02:07]} 6. Qb3 {[%emt 0:04:29]} Bc8 {[%emt 0:06:10]} 7. Bd3 {[%emt 0:15:46]} e6 {[%emt 0:00:18]} 8. e4 {[%emt 0:06:15]} dxc4 {[%emt 0:05:50]} 9. Bxc4 {[%emt 0:00:22]} b5 {[%emt 0:00:18]} 10. Be2 {[%emt 0:01:01]} Nbd7 {[%emt 0:02:11]} 11. e5 {[%emt 0:05:50]} Nd5 {[%emt 0:01:36]} 12. a4 {[%emt 0:03:40]} N7b6 {[%emt 0:12:22]} 13. Bg5 {[%emt 0:08:56]} Qc7 {[%emt 0:06:11]} 14. a5 {[%emt 0:05:36]} Nd7 {[%emt 0:01:07]} 15. O-O {[%emt 0:04:44]} h6 {[%emt 0:02:29]} 16. Nxd5 {[%emt 0:04:23]} cxd5 {[%emt 0:02:38]} 17. Rfc1 {[%emt 0:01:06]} Qb7 {[%emt 0:00:21]} 18. Rc2 {[%emt 0:13:21]} hxg5 {[%emt 0:04:27]} 19. Nxg5 {[%emt 0:01:33]} Be7 {[%emt 0:02:26]} 20. Qg3 {[%emt 0:06:11]} Nf8 {[%emt 0:09:25]} 21. Rac1 {[%emt 0:00:25]} Bd7 {[%emt 0:00:27]} 22. Rc7 {[%emt 0:00:16]} Qb8 {[%emt 0:00:06]} 23. f4 {[%emt 0:00:54]} Qd8 {[%emt 0:00:37]} 24. h4 {[%emt 0:06:10]} g6 {[%emt 0:04:58]} 25. Bg4 {[%emt 0:06:46]} Rc8 {[%emt 0:03:45]} 26. Rxc8 {[%emt 0:00:07]} Bxc8 {[%emt 0:00:08]} 27. Qe1 {[%emt 0:00:12]} Bd7 {[%emt 0:00:43]} 28. b4 {[%emt 0:00:37]} Nh7 {[%emt 0:03:33]} 29. Nf3 {[%emt 0:00:09]} O-O {[%emt 0:01:53]} 30. h5 {[%emt 0:00:50]} g5 {[%emt 0:00:30]} 31. g3 {[%emt 0:01:56]} Kh8 {[%emt 0:00:32]} 32. Kh2 {[%emt 0:00:44]} Rg8 {[%emt 0:01:01]} 33. Kh3 {[%emt 0:00:10]} Qf8 {[%emt 0:04:56]} 34. Rc7 {[%emt 0:00:38]} Bc8 {[%emt 0:03:19]} 35. Qc1 {[%emt 0:00:34]} gxf4 {[%emt 0:01:50]} 36. Qxf4 {[%emt 0:00:31]} Ng5+ {[%emt 0:02:01]} 37. Kg2 {[%emt 0:00:18]} Qd8 {[%emt 0:08:07]} 38. Ra7 {[%emt 0:01:09]} Bd7 {[%emt 0:01:55]} 39. Nxg5 {[%emt 0:01:21]} Bxg5 {[%emt 0:00:46]} 40. Qxf7 {[%emt 0:00:00]} Rg7 {[%emt 0:00:00]} 41. Qf3 {[%emt 0:03:26]} Qc8 {[%emt 0:06:33]} 42. Kh3 {[%emt 0:04:04]} Kg8 {[%emt 0:02:07]} 43. h6 {[%emt 0:09:40]} Rh7 {[%emt 0:00:39]} 44. Bh5 {[%emt 0:00:14]} Qf8 {[%emt 0:03:06]} 45. Qxf8+ {[%emt 0:02:53]} Kxf8 {[%emt 0:00:10]} 46. Rxa6 {[%emt 0:00:06]} Rxh6 {[%emt 0:00:16]} 47. Kg4 {[%emt 0:00:58]} Be3 {[%emt 0:07:36]} 48. Ra8+ {[%emt 0:00:58]} Ke7 {[%emt 0:00:01]} 49. a6 {[%emt 0:00:07]} Bc6 {[%emt 0:03:10]} 50. Rc8 {[%emt 0:01:52]} Kd7 {[%emt 0:00:16]} 51. Rg8 {[%emt 0:00:12]} Bxd4 {[%emt 0:04:13]} 52. a7 {[%emt 0:00:11]} Kc7 {[%emt 0:00:49]} 53. a8=Q {[%emt 0:02:19]} Bxa8 {[%emt 0:00:05]} 54. Rxa8 {[%emt 0:00:06]} Bxe5 {[%emt 0:00:22]} 55. Be8 {[%emt 0:02:47]} Bd6 {[%emt 0:02:06]} 56. Ra6 {[%emt 0:02:36]} Bxb4 {[%emt 0:00:38]} 57. Bxb5 {[%emt 0:00:06]} Bd2 {[%emt 0:01:55]} 58. Rc6+ {[%emt 0:00:26]} Kd8 {[%emt 0:00:12]} 59. Rc2 {[%emt 0:00:28]} Be3 {[%emt 0:00:53]} 60. Kf3 {[%emt 0:00:38]} Bg5 {[%emt 0:00:20]} 61. Rc6 {[%emt 0:01:33]} Ke7 {[%emt 0:00:19]} 62. Ra6 {[%emt 0:00:04]} Kf6 {[%emt 0:01:08]} 63. Bd7 {[%emt 0:00:12]} Ke5 {[%emt 0:00:07]} 64. Bc8 {[%emt 0:00:45]} Rf6+ {[%emt 0:01:01]} 65. Ke2 {[%emt 0:00:41]} Bh6 {[%emt 0:00:34]} 66. Kd3 {[%emt 0:01:11]} Bf8 {[%emt 0:01:42]} 67. g4 {[%emt 0:02:00]} Bd6 {[%emt 0:01:39]} 68. Ra4 {[%emt 0:01:42]} Rf3+ {[%emt 0:00:25]} 69. Ke2 {[%emt 0:00:07]} Rc3 {[%emt 0:00:34]} 70. Bd7 {[%emt 0:00:24]} Rc7 {[%emt 0:00:46]} 71. Be8 {[%emt 0:00:31]} Rg7 {[%emt 0:01:12]} 72. Kf3 {[%emt 0:00:33]} Kf6 {[%emt 0:00:13]} 73. Ra6 {[%emt 0:00:51]} Ke5 {[%emt 0:01:00]} 74. Ra4 {[%emt 0:00:15]} Rg8 {[%emt 0:00:25]} 75. Bd7 {[%emt 0:00:13]} Rd8 {[%emt 0:00:26]} 76. Bc6 {[%emt 0:00:27]} Kf6 {[%emt 0:00:15]} 77. Ra7 {[%emt 0:00:37]} Rc8 {[%emt 0:01:03]} 78. Ra6 {[%emt 0:00:13]} Ke5 {[%emt 0:00:57]} 79. Bd7 {[%emt 0:00:42]} Rf8+ {[%emt 0:00:26]} 80. Kg3 {[%emt 0:00:35]} d4 {[%emt 0:00:38]} 81. Kg2 {[%emt 0:00:45]} d3 {[%emt 0:00:23]} 82. Ra5+ {[%emt 0:00:10]} Kf6 {[%emt 0:00:21]} 83. Ba4 {[%emt 0:01:00]} Kg6 {[%emt 0:01:10]} 84. Ra6 {[%emt 0:00:30]} Rd8 {[%emt 0:00:16]} 85. Kf3 {[%emt 0:00:11]} Kf6 {[%emt 0:00:22]} 86. Bb3 {[%emt 0:00:38]} Rd7 {[%emt 0:02:03]} 87. Ba4 {[%emt 0:00:10]} Rd8 {[%emt 0:00:28]} 88. Bb3 {[%emt 0:00:03]} Ke5 {[%emt 0:01:11]} 89. Ra5+ {[%emt 0:00:05]} Kd4 {[%emt 0:00:20]} 90. Bxe6 {[%emt 0:00:18]} Bb4 {[%emt 0:00:25]} 91. Ra7 {[%emt 0:01:07]} d2 {[%emt 0:00:28]} 92. Bb3 {[%emt 0:01:02]} Rf8+ {[%emt 0:00:46]} 93. Kg2 {[%emt 0:01:31]} Kc3 {[%emt 0:00:20]} 94. Ba4 {[%emt 0:00:11]} Bc5 {[%emt 0:00:32]} 95. Rc7 {[%emt 0:00:32]} Kd4 {[%emt 0:00:30]} 96. Bd1 {[%emt 0:00:42]} Re8 {[%emt 0:00:33]} 97. Rd7+ {[%emt 0:00:37]} Kc3 {[%emt 0:00:32]} 98. Rc7 {[%emt 0:00:07]} Kc4 {[%emt 0:00:25]} 99. Rf7 {[%emt 0:02:26]} Re1 {[%emt 0:00:29]} 100. Rf1 {[%emt 0:00:04]} Kd3 {[%emt 0:00:27]} 101. Rh1 {[%emt 0:00:47]} Be3 {[%emt 0:00:12]} 102. Rf1 {[%emt 0:00:08]} Bg5 {[%emt 0:00:53]} 103. Rh1 {[%emt 0:00:08]} Kc3 {[%emt 0:00:33]} 104. Rf1 {[%emt 0:00:13]} Kb2 {[%emt 0:00:11]} 105. Rh1 {[%emt 0:00:08]} Kc1 {[%emt 0:00:16]} 106. Bf3 {[%emt 0:00:05]} Kc2 {[%emt 0:00:15]} 107. Rf1 {[%emt 0:00:06]} Rc1 {[%emt 0:01:01]} 108. Rh1 {[%emt 0:00:11]} Bf4 {[%emt 0:00:25]} 109. Rf1 {[%emt 0:00:07]} Bg3 {[%emt 0:00:43]} 110. g5 {[%emt 0:01:00]} Rxf1 {[%emt 0:01:23]} 111. Kxf1 {[%emt 0:00:09]} d1=Q+ {[%emt 0:00:21]} 112. Bxd1+ {[%emt 0:00:10]} Kxd1 {[%emt 0:00:05]} 113. g6 {[%emt 0:00:04]} Be5 {[%emt 0:00:03]} 114. g7 {[%emt 0:00:03]} Bxg7 {[%emt 0:00:17]} 1/2-1/2